Workbook

Sheet Cover
A3: Navigator
C5: =Client_Name -> Example
C6: =Model_Name -> Chapter 10.10 - Taxation.xlsm
C14: Primary Developer: Liam Bastick
C16: General Cover Notes:
C17: Simple financial model example to highlight key concepts.
C21: Any queries, please e-mail: | G21: liam.bastick@sumproduct.com
C22: Website: | G22: www.sumproduct.com

Sheet Navigator
A1: =IFERROR(RIGHT(CELL("filename",A1),LEN(CELL("filename",A1))-FIND("]",CELL("filename",A1))),"") -> Navigator
A2: =Model_Name -> Chapter 10.10 - Taxation.xlsm
A3: Navigator
A4: Error Checks: | G4: =Overall_Error_Check -> 0
B7: 1 | C7: Table of Contents
F9: Cover
F10: Style Guide
F11: Model Parameters
F12: General Assumptions
F13: Calculations
F14: Opening Balance Sheet
F15: Income Statement
F16: Balance Sheet
F17: Cash Flow Statement
F18: Error Checks
F19: Timing
F20: Lookup
F21: Change Log

Sheet Style Guide
A1: =IFERROR(RIGHT(CELL("filename",A1),LEN(CELL("filename",A1))-FIND("]",CELL("filename",A1))),"") -> Style Guide
A2: =Model_Name -> Chapter 10.10 - Taxation.xlsm
A3: Navigator
A4: Error Checks: | I4: =Overall_Error_Check -> 0
B6: =MAX($B$5:$B5)+1 -> 1 | C6: Formatting of Headers / Dividers
C8: Description | I8: Display | K8: Style Name
C10: Sheet Title | I10: =C10 -> Sheet Title | K10: Sheet Title
C11: Model Name | I11: =C11 -> Model Name | K11: Model Name
C13: Header 1 | I13: =C13 -> Header 1 | K13: Header 1
C14: Header 2 | I14: =C14 -> Header 2 | K14: Header 2
C15: Header 3 | I15: =C15 -> Header 3 | K15: Header 3
C16: Header 4 | I16: =C16 -> Header 4 | K16: Header 4
C18: Notes | I18: =C18 -> Notes | K18: Notes
C20: Table Heading | I20: =C20 -> Table Heading | K20: Table Heading
B23: =MAX($B$5:$B22)+1 -> 2 | C23: Individual Cell Styles
C25: Description | I25: Display | K25: Style Name
C27: Assumption | I27: Assumption | K27: =C27 -> Assumption
C29: Constraint | I29: =C29 -> Constraint | K29: =C29 -> Constraint
C31: Empty | K31: =C31 -> Empty
C33: Error Check | I33: 0 | K33: =C33 -> Error Check
C35: Hyperlink | I35: Hyperlink | K35: =C35 -> Hyperlink
C37: Internal Reference | I37: ='Error Checks'!E16 -> Balance Sheet - balances | K37: =C37 -> Internal Reference
C39: Line Calculation | I39: 77 | K39: Line Calc
C41: Line Total | I41: =I39 -> 77 | K41: =C41 -> Line Total
C43: Parameter | I43: 365 | K43: =C43 -> Parameter
C45: Range Name Description | I45: Not_Named | K45: =C45 -> Range Name Description
C47: Row Reference | I47: =ROW(C47) -> 47 | K47: Row Ref
C49: Row Summary | I49: =I41 -> 77 | K49: =C49 -> Row Summary
C51: Units | I51: =Currency -> US$'000 | K51: =C51 -> Units
C53: WIP | K53: =C53 -> WIP
B56: =MAX($B$5:$B55)+1 -> 3 | C56: Numerical Styles
C58: Description | I58: Display | K58: Style Name
C60: Comma | I60: 123456.789 | K60: =C60 -> Comma
C62: Comma [0] | I62: -123456.789 | K62: Comma [0]
C64: Currency | I64: 123456.789 | K64: Currency
C66: Currency [0] | I66: 123456.789 | K66: Currency [0]
C68: Date | I68: =TODAY() -> 2018-07-04 | K68: =C68 -> Date
C70: Date Heading | I70: =TODAY() -> 2018-07-04 | K70: =C70 -> Date Heading
C72: Numbers 0 | I72: -123456.789 | K72: =C72 -> Numbers 0
C74: Percent | I74: 0.5 | K74: =C74 -> Percent

Sheet Model Parameters
A1: =IFERROR(RIGHT(CELL("filename",A1),LEN(CELL("filename",A1))-FIND("]",CELL("filename",A1))),"") -> Model Parameters
A2: =Model_Name -> Chapter 10.10 - Taxation.xlsm
A3: Navigator
A4: =Timing!A4 -> Error Checks: | I4: =Overall_Error_Check -> 0
B6: =MAX($B$5:$B5)+1 -> 1 | C6: General
C8: Key Inputs
D10: General
E12: Model Name | G12: =IFERROR(MID(CELL("filename",A1),FIND("[",CELL("filename",A1))+1,FIND("]",CELL("filename",A1))-FIND("[",CELL("filename",A1))-1),””) -> Chapter 10.10 - Taxation.xlsm
E13: Client Name | G13: Example
B16: =MAX($B$5:$B15)+1 -> 2 | C16: General Range Names
C18: Technical Assumptions
E20: Days in Year | G20: 365 | I20: Days_in_Year
E21: Months in Month | G21: 1 | I21: Months_in_Month
E22: Months in Quarter | G22: 3 | I22: Months_in_Qtr
E23: Months in Half Yr | G23: 6 | I23: Months_in_Half_Yr
E24: Months in Year | G24: 12 | I24: Months_in_Year
E25: Quarters in Year | G25: 4 | I25: Quarters_in_Year
E27: Rounding Accuracy | G27: 5 | I27: Rounding_Accuracy
E29: Very Large Number | G29: 1e+99 | I29: Very_Large_Number
E30: Very Small Number | G30: 1e-08 | I30: Very_Small_Number
E32: Thousand | G32: 1000 | I32: Thousand
B35: =MAX($B$5:$B34)+1 -> 3 | C35: Technical assumptions
C37: Model Information
E39: Start Date | G39: =Model_Start_Date -> 2020-07-01
C42: Units
E44: Unit | G44: # | I44: Unit
E45: Currency | G45: US$'000 | I45: Currency
E46: Boolean | G46: [1,0] | I46: Boolean
E47: Percentage | G47: % | I47: Percentage
E48: No of Days | G48: # Days | I48: No_of_Days
E49: Year | G49: Year | I49: Year
E50: No of Years | G50: # Year(s) | I50: No_of_Years
E51: Multiplier | G51: x | I51: Multiplier
C54: Financial Statement Abbreviations
E56: Income Statement | G56: IS | I56: Income_Statement
E57: Balance Sheet | G57: BS | I57: Balance_Sheet
E58: Cash Flow Statement | G58: CFS | I58: Cash_Flow_Statement

Sheet General Assumptions
A1: =IFERROR(RIGHT(CELL("filename",A1),LEN(CELL("filename",A1))-FIND("]",CELL("filename",A1))),"") -> General Assumptions
A2: =Model_Name -> Chapter 10.10 - Taxation.xlsm
A3: Navigator
A4: =Timing!A4 -> Error Checks: | G4: =Overall_Error_Check -> 0
J5: =Timing!J5 -> 2021-06-30 | K5: =Timing!K5 -> 2022-06-30 | L5: =Timing!L5 -> 2023-06-30 | M5: =Timing!M5 -> 2024-06-30 | N5: =Timing!N5 -> 2025-06-30
C6: =Timing!C6 -> Start Date | J6: =Timing!J6 -> 2020-07-01 | K6: =Timing!K6 -> 2021-07-01 | L6: =Timing!L6 -> 2022-07-01 | M6: =Timing!M6 -> 2023-07-01 | N6: =Timing!N6 -> 2024-07-01
C7: =Timing!C7 -> End Date | J7: =Timing!J7 -> 2021-06-30 | K7: =Timing!K7 -> 2022-06-30 | L7: =Timing!L7 -> 2023-06-30 | M7: =Timing!M7 -> 2024-06-30 | N7: =Timing!N7 -> 2025-06-30
C8: =Timing!C8 -> Number of Days | J8: =Timing!J8 -> 365 | K8: =Timing!K8 -> 365 | L8: =Timing!L8 -> 365 | M8: =Timing!M8 -> 366 | N8: =Timing!N8 -> 365
C9: =Timing!C9 -> Counter | J9: =Timing!J9 -> 1 | K9: =Timing!K9 -> 2 | L9: =Timing!L9 -> 3 | M9: =Timing!M9 -> 4 | N9: =Timing!N9 -> 5
B11: =MAX($B$10:$B10)+1 -> 1 | C11: =A1 -> General Assumptions
C13: Revenue and Related
D15: Revenue
E17: Revenue First Year | G17: =Currency -> US$'000 | J17: 400
E18: Revenue Growth Rate | G18: =Percentage -> % | K18: 0.12 | L18: 0.1 | M18: 0.08 | N18: 0.05
D20: Working Capital
E22: Days Receivable | G22: =No_of_Days -> # Days | J22: 60 | K22: 60 | L22: 60 | M22: 60 | N22: 60
C25: COGS and Related
D27: COGS
E29: Gross Margin | G29: =Percentage -> % | J29: 0.7 | K29: 0.7 | L29: 0.7 | M29: 0.7 | N29: 0.7
D31: =D20 -> Working Capital
E33: Days Payable | G33: =No_of_Days -> # Days | J33: 90 | K33: 90 | L33: 90 | M33: 90 | N33: 90
C36: Opex and Cash Payments
C37: All expenses are assumed to be paid as they are incurred.
D39: Opex
E41: Growth Rates Used From | G41: Year | I41: 2023-06-30
E42: Amounts | G42: =Currency -> US$'000 | J42: 60 | K42: 65 | L42: 70 | M42: 75 | N42: 80
E43: Growth Rates | G43: =Percentage -> % | K43: 0.05 | L43: 0.04 | M43: 0.03 | N43: 0.02
C46: Capex and Related
D48: Capital Expenditure
E50: Capital Expenditure | G50: =Currency -> US$'000 | J50: 150 | K50: 180 | L50: 120 | M50: 90 | N50: 100
D52: Accounting Depreciation - Straight Line
E54: Remaining Life of Existing Assets | G54: =No_of_Years -> # Year(s) | I54: 5
E55: Annual Rate | G55: =Percentage -> % | I55: =IF(I54<=0,0,1/I54) -> 0.2
E57: Economic Life of New Capex | G57: =No_of_Years -> # Year(s) | I57: 4
E58: =E55 -> Annual Rate | G58: =Percentage -> % | I58: =IF(I57<=0,0,1/I57) -> 0.25
C61: Debt and Related
C62: Movements are assumed to occur ar the end of each period.
C63: Interest is assumed to be paid in the following period.
D65: Debt
E67: Debt Drawdowns | G67: =Currency -> US$'000 | J67: 20 | K67: 20 | L67: 0 | M67: 0 | N67: 0
E68: Debt Repayments | G68: =Currency -> US$'000 | J68: 0 | K68: 0 | L68: 15 | M68: 25 | N68: 10
D70: Interest
E72: Interest Rate | G72: =Percentage -> % | J72: 0.06 | K72: 0.065 | L72: 0.07 | M72: 0.075 | N72: 0.08
D74: Interest Receivable | G74: =Percentage -> %
E76: Interest Receivable Rate | G76: =Percentage -> % | J76: 0.01 | K76: 0.01 | L76: 0.01 | M76: 0.01 | N76: 0.01
E78: Proportion into Period of Movement | G78: =Percentage -> % | I78: 0.5
C81: Taxation
D83: Tax Rate
E85: =D83 -> Tax Rate | G85: =Percentage -> % | I85: 0.3
D87: Permanent Differences
E89: Non-Assessable Revenue | G89: =Currency -> US$'000 | J89: 25 | K89: 25 | L89: 25 | M89: 25 | N89: 25
E90: Disallowable Expenses | G90: =Currency -> US$'000 | J90: 40 | K90: 16 | L90: 25 | M90: 30 | N90: 50
D92: Tax Depreciation (Declining Balance)
E94: Declining Balance Multiplier | G94: =Multiplier -> x | I94: 2
E96: Remaining Life of Tax Assets | G96: =No_of_Years -> # Year(s) | I96: 5
E97: =E55 -> Annual Rate | G97: =Percentage -> % | I97: =IF(I96<=0,0,I94/I96) -> 0.4
E99: Tax Asset Life of New Capex | G99: =No_of_Years -> # Year(s) | I99: 4
E100: =E58 -> Annual Rate | G100: =Percentage -> % | I100: =IF(I99<=0,0,I94/I99) -> 0.5
D102: DTA
D103: DTAs are assumed to arise through losses carried forward.
E105: =D102 -> DTA | G105: =Currency -> US$'000 | I105: ='Opening Balance Sheet'!I21 -> 0
D107: DTL
D108: DTLs are assumed to arise through depreciation timing differences.
E110: =D107 -> DTL | G110: =Currency -> US$'000 | I110: ='Opening Balance Sheet'!I36 -> 0
D112: Tax Payable and Paid
E114: Payment Delay | G114: =No_of_Years -> # Year(s) | I114: 1
C117: Ordinary Equity and Related
D119: Ordinary Equity
E121: Equity Issuances | G121: =Currency -> US$'000 | J121: 15 | K121: 25 | L121: 0 | M121: 10 | N121: 0
E122: Equity Buybacks | G122: =Currency -> US$'000 | J122: 0 | K122: 0 | L122: 5 | M122: 5 | N122: 20
D124: Dividends
D125: Dividends are assumed to be paid in the period after they are declared.
E127: Dividend Payout Ratio | G127: =Percentage -> % | J127: 0.25 | K127: 0.3 | L127: 0.35 | M127: 0.4 | N127: 0.45

Sheet Calculations
A1: =IFERROR(RIGHT(CELL("filename",A1),LEN(CELL("filename",A1))-FIND("]",CELL("filename",A1))),"") -> Calculations
A2: =Model_Name -> Chapter 10.10 - Taxation.xlsm
A3: Navigator
A4: =Timing!A4 -> Error Checks: | G4: =Overall_Error_Check -> 0
J5: =Timing!J5 -> 2021-06-30 | K5: =Timing!K5 -> 2022-06-30 | L5: =Timing!L5 -> 2023-06-30 | M5: =Timing!M5 -> 2024-06-30 | N5: =Timing!N5 -> 2025-06-30
C6: =Timing!C6 -> Start Date | J6: =Timing!J6 -> 2020-07-01 | K6: =Timing!K6 -> 2021-07-01 | L6: =Timing!L6 -> 2022-07-01 | M6: =Timing!M6 -> 2023-07-01 | N6: =Timing!N6 -> 2024-07-01
C7: =Timing!C7 -> End Date | J7: =Timing!J7 -> 2021-06-30 | K7: =Timing!K7 -> 2022-06-30 | L7: =Timing!L7 -> 2023-06-30 | M7: =Timing!M7 -> 2024-06-30 | N7: =Timing!N7 -> 2025-06-30
C8: =Timing!C8 -> Number of Days | J8: =Timing!J8 -> 365 | K8: =Timing!K8 -> 365 | L8: =Timing!L8 -> 365 | M8: =Timing!M8 -> 366 | N8: =Timing!N8 -> 365
C9: =Timing!C9 -> Counter | J9: =Timing!J9 -> 1 | K9: =Timing!K9 -> 2 | L9: =Timing!L9 -> 3 | M9: =Timing!M9 -> 4 | N9: =Timing!N9 -> 5
B11: =MAX($B$10:$B10)+1 -> 1 | C11: =A1 -> Calculations
C13: Revenue and Related
D15: Revenue
E17: Revenue First Year | G17: =Currency -> US$'000 | J17: ='General Assumptions'!J17 -> 400
E18: Revenue Growth Rate | G18: =Percentage -> % | K18: ='General Assumptions'!K18 -> 0.12 | L18: ='General Assumptions'!L18 -> 0.1 | M18: ='General Assumptions'!M18 -> 0.08 | N18: ='General Assumptions'!N18 -> 0.05
E19: Revenue | G19: =Currency -> US$'000 | J19: =IF(J$9=1,$J17,I19*(1+J18)) -> 400 | K19: =IF(K$9=1,$J17,J19*(1+K18)) -> 448 | L19: 492.8 | M19: 532.224 | N19: 558.8352
D21: Working Capital
E23: Days Receivable | G23: =No_of_Days -> # Days | J23: ='General Assumptions'!J22 -> 60 | K23: 60 | L23: 60 | M23: 60 | N23: 60
E25: Days in Period | G25: =No_of_Days -> # Days | J25: =J$8 -> 365 | K25: =K$8 -> 365 | L25: 365 | M25: 366 | N25: 365
E27: Closing Receivables | G27: =Currency -> US$'000 | J27: =J23/J25*J19 -> 65.75342466 | K27: =K23/K25*K19 -> 73.64383562 | L27: =L23/L25*L19 -> 81.00821918 | M27: =M23/M25*M19 -> 87.24983607 | N27: =N23/N25*N19 -> 91.86332055
D29: Control Account
E31: Opening Receivables | G31: =Currency -> US$'000 | J31: =I34 -> 0 | K31: =J34 -> 65.75342466 | L31: 73.64383562 | M31: 81.00821918 | N31: 87.24983607 | O31: =Balance_Sheet -> BS
E32: Revenue | G32: =Currency -> US$'000 | J32: =J19 -> 400 | K32: =K19 -> 448 | L32: 492.8 | M32: 532.224 | N32: 558.8352 | O32: =Income_Statement -> IS
E33: Cash Receipts | G33: =Currency -> US$'000 | J33: =J34-SUM(J31:J32) -> -334.2465753 | K33: =K34-SUM(K31:K32) -> -440.109589 | L33: -485.4356164 | M33: -525.9823831 | N33: -554.2217155 | O33: =Cash_Flow_Statement -> CFS
E34: Closing Receivables | G34: =Currency -> US$'000 | I34: ='Opening Balance Sheet'!$I$15 -> 0 | J34: =J27 -> 65.75342466 | K34: =K27 -> 73.64383562 | L34: 81.00821918 | M34: 87.24983607 | N34: 91.86332055 | O34: =Balance_Sheet -> BS
C37: COGS and Related
D39: COGS
E41: Revenue | G41: =Currency -> US$'000 | J41: =J19 -> 400 | K41: =K19 -> 448 | L41: 492.8 | M41: 532.224 | N41: 558.8352 | P41: =_xlfn.FORMULATEXT(J41) -> =J19
E42: Gross Margin | G42: =Percentage -> % | J42: ='General Assumptions'!J29 -> 0.7 | K42: ='General Assumptions'!K29 -> 0.7 | L42: ='General Assumptions'!L29 -> 0.7 | M42: ='General Assumptions'!M29 -> 0.7 | N42: ='General Assumptions'!N29 -> 0.7 | P42: =_xlfn.FORMULATEXT(J42) -> ='General Assumptions'!J29
E43: Gross Profit | G43: =Currency -> US$'000 | J43: =J41*J42 -> 280 | K43: =K41*K42 -> 313.6 | L43: 344.96 | M43: 372.5568 | N43: 391.18464 | P43: =J41*J42
E45: COGS | G45: =Currency -> US$'000 | J45: =J41-J43 -> 120 | K45: =K41-K43 -> 134.4 | L45: 147.84 | M45: 159.6672 | N45: 167.65056 | P45: =J41-J43
D47: Working Capital
E49: Days Payable | G49: =No_of_Days -> # Days | J49: ='General Assumptions'!J33 -> 90 | K49: ='General Assumptions'!K33 -> 90 | L49: ='General Assumptions'!L33 -> 90 | M49: ='General Assumptions'!M33 -> 90 | N49: ='General Assumptions'!N33 -> 90 | P49: ='General Assumptions'!J33
E51: Days in Period | G51: =No_of_Days -> # Days | J51: =J$8 -> 365 | K51: =K$8 -> 365 | L51: 365 | M51: 366 | N51: 365 | P51: =J$8
E53: Closing Payables | G53: =Currency -> US$'000 | J53: =J49/J51*J45 -> 29.5890411 | K53: =K49/K51*K45 -> 33.13972603 | L53: =L49/L51*L45 -> 36.45369863 | M53: =M49/M51*M45 -> 39.26242623 | N53: =N49/N51*N45 -> 41.33849425 | P53: =J49/J51*J45
D55: =D29 -> Control Account
E57: Opening Payables | G57: =Currency -> US$'000 | J57: =I60 -> 0 | K57: =J60 -> 29.5890411 | L57: =K60 -> 33.13972603 | M57: =L60 -> 36.45369863 | N57: =M60 -> 39.26242623 | O57: =Balance_Sheet -> BS | P57: =I60
E58: COGS | G58: =Currency -> US$'000 | J58: =J45 -> 120 | K58: =K45 -> 134.4 | L58: 147.84 | M58: 159.6672 | N58: 167.65056 | O58: =Income_Statement -> IS | P58: =J45
E59: Cash Payments | G59: =Currency -> US$'000 | J59: =J60-SUM(J57:J58) -> -90.4109589 | K59: =K60-SUM(K57:K58) -> -130.8493151 | L59: -144.5260274 | M59: -156.8584724 | N59: -165.574492 | O59: =Cash_Flow_Statement -> CFS | P59: =J60-SUM(J57:J58)
E60: Closing Payables | G60: =Currency -> US$'000 | I60: ='Opening Balance Sheet'!I27 -> 0 | J60: =J53 -> 29.5890411 | K60: =K53 -> 33.13972603 | L60: 36.45369863 | M60: 39.26242623 | N60: 41.33849425 | O60: =Balance_Sheet -> BS | P60: =J53
C63: ='General Assumptions'!C36 -> Opex and Cash Payments
C64: ='General Assumptions'!C37 -> All expenses are assumed to be paid as they are incurred.
D66: ='General Assumptions'!D39 -> Opex
E68: ='General Assumptions'!E41 -> Growth Rates Used From | G68: =Year -> Year | I68: ='General Assumptions'!I41 -> 2023-06-30 | P68: =_xlfn.FORMULATEXT(I68) -> ='General Assumptions'!I41
E69: Growth Rates Flag | G69: =Boolean -> [1,0] | J69: =($I68<=J$7)*1 -> 0 | K69: =($I68<=K$7)*1 -> 0 | L69: 1 | M69: 1 | N69: 1 | P69: =_xlfn.FORMULATEXT(J69) -> =($I68<=J$7)*1
E71: ='General Assumptions'!E42 -> Amounts | G71: =Currency -> US$'000 | J71: ='General Assumptions'!J42 -> 60 | K71: ='General Assumptions'!K42 -> 65 | L71: ='General Assumptions'!L42 -> 70 | M71: ='General Assumptions'!M42 -> 75 | N71: ='General Assumptions'!N42 -> 80 | P71: =_xlfn.FORMULATEXT(J71) -> ='General Assumptions'!J42
E72: ='General Assumptions'!E43 -> Growth Rates | G72: =Percentage -> % | K72: ='General Assumptions'!K43 -> 0.05 | L72: ='General Assumptions'!L43 -> 0.04 | M72: ='General Assumptions'!M43 -> 0.03 | N72: ='General Assumptions'!N43 -> 0.02 | P72: In cell K72: ='General Assumptions'!K43
E74: Opex | G74: =Currency -> US$'000 | J74: =(1-J69)*J71+(J69*I74*(1+J72)) -> 60 | K74: =(1-K69)*K71+(K69*J74*(1+K72)) -> 65 | L74: 67.6 | M74: 69.628 | N74: 71.02056 | P74: =(1-J69)*J71+(J69*I74*(1+J72))
D76: =D47 -> Working Capital
E78: =E49 -> Days Payable | G78: =No_of_Days -> # Days
E80: =E51 -> Days in Period | G80: =No_of_Days -> # Days | J80: =J$8 -> 365 | K80: =K$8 -> 365 | L80: 365 | M80: 366 | N80: 365 | P80: =J$8
E82: =E53 -> Closing Payables | G82: =Currency -> US$'000 | J82: =J78/J80*J74 -> 0 | K82: =K78/K80*K74 -> 0 | L82: =L78/L80*L74 -> 0 | M82: =M78/M80*M74 -> 0 | N82: =N78/N80*N74 -> 0 | P82: =J78/J80*J74
D84: =D55 -> Control Account
E86: =E57 -> Opening Payables | G86: =Currency -> US$'000 | J86: =I89 -> 0 | K86: =J89 -> 0 | L86: 0 | M86: 0 | N86: 0 | O86: =Balance_Sheet -> BS | P86: =I89
E87: Opex | G87: =Currency -> US$'000 | J87: =J74 -> 60 | K87: =K74 -> 65 | L87: 67.6 | M87: 69.628 | N87: 71.02056 | O87: =Income_Statement -> IS | P87: =J74
E88: =E59 -> Cash Payments | G88: =Currency -> US$'000 | J88: =J89-SUM(J86:J87) -> -60 | K88: =K89-SUM(K86:K87) -> -65 | L88: =L89-SUM(L86:L87) -> -67.6 | M88: =M89-SUM(M86:M87) -> -69.628 | N88: =N89-SUM(N86:N87) -> -71.02056 | O88: =Cash_Flow_Statement -> CFS | P88: =J89-SUM(J86:J87)
E89: =E60 -> Closing Payables | G89: =Currency -> US$'000 | J89: =J82 -> 0 | K89: =K82 -> 0 | L89: 0 | M89: 0 | N89: 0 | O89: =Balance_Sheet -> BS | P89: =J82
C92: ='General Assumptions'!C46 -> Capex and Related
D94: ='General Assumptions'!D48 -> Capital Expenditure
E96: Existing Assets | G96: =Currency -> US$'000 | I96: ='Opening Balance Sheet'!I20 -> 0 | P96: =_xlfn.FORMULATEXT(I96) -> ='Opening Balance Sheet'!I20
E97: ='General Assumptions'!E50 -> Capital Expenditure | G97: =Currency -> US$'000 | J97: ='General Assumptions'!J50 -> 150 | K97: ='General Assumptions'!K50 -> 180 | L97: ='General Assumptions'!L50 -> 120 | M97: ='General Assumptions'!M50 -> 90 | N97: ='General Assumptions'!N50 -> 100 | P97: =_xlfn.FORMULATEXT(J97) -> ='General Assumptions'!J50
D99: ='General Assumptions'!D52 -> Accounting Depreciation - Straight Line
E101: ='General Assumptions'!E54 -> Remaining Life of Existing Assets | G101: =No_of_Years -> # Year(s) | I101: ='General Assumptions'!I54 -> 5 | P101: =_xlfn.FORMULATEXT(I101) -> ='General Assumptions'!I54
E102: ='General Assumptions'!E55 -> Annual Rate | G102: =Percentage -> % | I102: ='General Assumptions'!I55 -> 0.2 | P102: ='General Assumptions'!I55
E104: ='General Assumptions'!E57 -> Economic Life of New Capex | G104: =No_of_Years -> # Year(s) | I104: ='General Assumptions'!I57 -> 4 | P104: ='General Assumptions'!I57
E105: ='General Assumptions'!E58 -> Annual Rate | G105: =Percentage -> % | I105: ='General Assumptions'!I58 -> 0.25 | P105: ='General Assumptions'!I58
E107: Depreciation - Existing Assets | G107: =Currency -> US$'000 | I107: =I96*I102 -> 0 | P107: =I96*I102
E108: Depreciation - New Assets | G108: =Currency -> US$'000 | J108: =$I105*J97 -> 37.5 | K108: =$I105*K97 -> 45 | L108: 30 | M108: 22.5 | N108: 25 | P108: =_xlfn.FORMULATEXT(J108) -> =$I105*J97
E110: New Assets - Depreciation Counter | G110: =Unit -> # | J110: =MIN(J$9,$I104) -> 1 | K110: =MIN(K$9,$I104) -> 2 | L110: 3 | M110: 4 | N110: 4 | P110: =_xlfn.FORMULATEXT(J110) -> =MIN(J$9,$I104)
E112: Aggregate Depreciation - Existing Assets | G112: =Currency -> US$'000 | J112: =IF(J$9<=$I101,$I107,0) -> 0 | K112: =IF(K$9<=$I101,$I107,0) -> 0 | L112: 0 | M112: 0 | N112: 0 | P112: =IF(J$9<=$I101,$I107,0)
E113: Aggregate Depreciation - New Assets | G113: =Currency -> US$'000 | J113: =SUM(OFFSET(J108,0,0,1,-J110)) -> 37.5 | K113: =SUM(OFFSET(K108,0,0,1,-K110)) -> 82.5 | L113: 112.5 | M113: 135 | N113: 122.5 | P113: =SUM(OFFSET(J108,0,0,1,-J110))
E114: Total Depreciation | G114: =Currency -> US$'000 | J114: =SUM(J112:J113) -> 37.5 | K114: =SUM(K112:K113) -> 82.5 | L114: 112.5 | M114: 135 | N114: 122.5 | P114: =SUM(J112:J113)
D116: =D84 -> Control Account
E118: Opening Net Book Value | G118: =Currency -> US$'000 | J118: =I121 -> 0 | K118: =J121 -> 112.5 | L118: 210 | M118: 217.5 | N118: =M121 -> 172.5 | O118: =Balance_Sheet -> BS | P118: =I121
E119: =E97 -> Capital Expenditure | G119: =Currency -> US$'000 | J119: =J97 -> 150 | K119: =K97 -> 180 | L119: 120 | M119: 90 | N119: 100 | O119: =Cash_Flow_Statement -> CFS | P119: =J97
E120: =E114 -> Total Depreciation | G120: =Currency -> US$'000 | J120: =-J114 -> -37.5 | K120: =-K114 -> -82.5 | L120: -112.5 | M120: -135 | N120: -122.5 | O120: =Income_Statement -> IS | P120: =-J114
E121: Closing Net Book Value | G121: =Currency -> US$'000 | I121: =I96 -> 0 | J121: =SUM(J118:J120) -> 112.5 | K121: =SUM(K118:K120) -> 210 | L121: 217.5 | M121: 172.5 | N121: 150 | O121: =Balance_Sheet -> BS | P121: =SUM(J118:J120)
C124: ='General Assumptions'!C61 -> Debt and Related
C125: ='General Assumptions'!C62 -> Movements are assumed to occur ar the end of each period.
C126: ='General Assumptions'!C63 -> Interest is assumed to be paid in the following period.
D128: ='General Assumptions'!D65 -> Debt
E130: ='General Assumptions'!E67 -> Debt Drawdowns | G130: =Currency -> US$'000 | J130: ='General Assumptions'!J67 -> 20 | K130: ='General Assumptions'!K67 -> 20 | L130: ='General Assumptions'!L67 -> 0 | M130: ='General Assumptions'!M67 -> 0 | N130: ='General Assumptions'!N67 -> 0
E131: ='General Assumptions'!E68 -> Debt Repayments | G131: =Currency -> US$'000 | J131: ='General Assumptions'!J68 -> 0 | K131: ='General Assumptions'!K68 -> 0 | L131: ='General Assumptions'!L68 -> 15 | M131: ='General Assumptions'!M68 -> 25 | N131: ='General Assumptions'!N68 -> 10
D133: =D116 -> Control Account
E135: Opening Debt | G135: =Currency -> US$'000 | J135: =I138 -> 0 | K135: =J138 -> 20 | L135: 40 | M135: 25 | N135: 0 | O135: =Balance_Sheet -> BS
E136: =E130 -> Debt Drawdowns | G136: =Currency -> US$'000 | J136: =J130 -> 20 | K136: =K130 -> 20 | L136: 0 | M136: 0 | N136: 0 | O136: =Cash_Flow_Statement -> CFS
E137: =E131 -> Debt Repayments | G137: =Currency -> US$'000 | J137: =-J131 -> 0 | K137: =-K131 -> 0 | L137: -15 | M137: -25 | N137: -10 | O137: =Cash_Flow_Statement -> CFS
E138: Closing Debt | G138: =Currency -> US$'000 | I138: ='Opening Balance Sheet'!I35 -> 0 | J138: =SUM(J135:J137) -> 20 | K138: =SUM(K135:K137) -> 40 | L138: 25 | M138: 0 | N138: -10 | O138: =Balance_Sheet -> BS
D140: ='General Assumptions'!D70 -> Interest
E142: ='General Assumptions'!E72 -> Interest Rate | G142: =Percentage -> % | J142: ='General Assumptions'!J72 -> 0.06 | K142: ='General Assumptions'!K72 -> 0.065 | L142: ='General Assumptions'!L72 -> 0.07 | M142: ='General Assumptions'!M72 -> 0.075 | N142: ='General Assumptions'!N72 -> 0.08 | P142: =_xlfn.FORMULATEXT(J142) -> ='General Assumptions'!J72
E144: =E135 -> Opening Debt | G144: =Currency -> US$'000 | J144: =J135 -> 0 | K144: =K135 -> 20 | L144: 40 | M144: 25 | N144: 0 | P144: =J135
E146: Days in Period | G146: =Unit -> # | J146: =J$8 -> 365 | K146: =K$8 -> 365 | L146: 365 | M146: 366 | N146: 365 | P146: =J$8
E147: Days in Standard Year | G147: =Unit -> # | J147: =Days_in_Yr -> 365 | K147: =Days_in_Yr -> 365 | L147: =Days_in_Yr -> 365 | M147: =Days_in_Yr -> 365 | N147: =Days_in_Yr -> 365 | P147: =Days_in_Yr
E148: Proportion of Year | G148: =Percentage -> % | J148: =MIN(J146/J147,1) -> 1 | K148: =MIN(K146/K147,1) -> 1 | L148: 1 | M148: 1 | N148: 1 | P148: =MIN(J146/J147,1)
E150: =D140 -> Interest | G150: =Currency -> US$'000 | J150: =J144*J142*J148 -> 0 | K150: =K144*K142*K148 -> 1.3 | L150: 2.8 | M150: 1.875 | N150: 0 | P150: =J144*J142*J148
D152: =D116 -> Control Account
E154: Opening Interest Payable | G154: =Currency -> US$'000 | J154: =I157 -> 0 | K154: =J157 -> 0 | L154: 1.3 | M154: 2.8 | N154: 1.875 | O154: =Balance_Sheet -> BS | P154: =I157
E155: Interest Expense | G155: =Currency -> US$'000 | J155: =J150 -> 0 | K155: =K150 -> 1.3 | L155: 2.8 | M155: 1.875 | N155: 0 | O155: =Income_Statement -> IS | P155: =J150
E156: Interest Paid | G156: =Currency -> US$'000 | J156: =-J154 -> 0 | K156: 0 | L156: -1.3 | M156: -2.8 | N156: -1.875 | O156: =Cash_Flow_Statement -> CFS | P156: =-J154
E157: Closing Interest Payable | G157: =Currency -> US$'000 | I157: ='Opening Balance Sheet'!I28 -> 0 | J157: =SUM(J154:J156) -> 0 | K157: =SUM(K154:K156) -> 1.3 | L157: 2.8 | M157: 1.875 | N157: 0 | O157: =Balance_Sheet -> BS | P157: =SUM(J154:J156)
C160: Interest Receivable
E162: Interest Receivable Rate | G162: % | J162: ='General Assumptions'!J76 -> 0.01 | K162: ='General Assumptions'!K76 -> 0.01 | L162: ='General Assumptions'!L76 -> 0.01 | M162: ='General Assumptions'!M76 -> 0.01 | N162: ='General Assumptions'!N76 -> 0.01 | P162: ='General Assumptions'!J76
E164: Proportion into Period of Movement | G164: % | I164: ='General Assumptions'!I78 -> 0.5 | P164: =_xlfn.FORMULATEXT(I164) -> ='General Assumptions'!I78
E166: Opening Cash Balance | G166: A$'000 | J166: =IF(J$9=1,'Opening Balance Sheet'!$I$14,'Balance Sheet'!I$14) -> 0 | K166: =IF(K$9=1,'Opening Balance Sheet'!$I$14,'Balance Sheet'!J$14) -> 53.83561644 | L166: =IF(L$9=1,'Opening Balance Sheet'!$I$14,'Balance Sheet'!K$14) -> 90.28497687 | M166: =IF(M$9=1,'Opening Balance Sheet'!$I$14,'Balance Sheet'!L$14) -> 194.5598109 | N166: =IF(N$9=1,'Opening Balance Sheet'!$I$14,'Balance Sheet'!M$14) -> 332.0106449 | P166: =IF(J$9=1,'Opening Balance Sheet'!$I$14,'Balance Sheet'!I$14)
E167: Non-Interest Cash Movement | G167: A$'000 | J167: ='Cash Flow Statement'!J22+'Cash Flow Statement'!J26+'Cash Flow Statement'!J35 -> 53.83561644 | K167: ='Cash Flow Statement'!K22+'Cash Flow Statement'!K26+'Cash Flow Statement'!K35 -> 36.17923692 | L167: ='Cash Flow Statement'!L22+'Cash Flow Statement'!L26+'Cash Flow Statement'!L35 -> 103.5530555 | M167: ='Cash Flow Statement'!M22+'Cash Flow Statement'!M26+'Cash Flow Statement'!M35 -> 136.0252293 | N167: ='Cash Flow Statement'!N22+'Cash Flow Statement'!N26+'Cash Flow Statement'!N35 -> 148.0200396 | P167: ='Cash Flow Statement'!J22+'Cash Flow Statement'!J26+'Cash Flow Statement'!J35
E168: Tax Rate | G168: % | J168: ='General Assumptions'!$I$85 -> 0.3 | K168: ='General Assumptions'!$I$85 -> 0.3 | L168: ='General Assumptions'!$I$85 -> 0.3 | M168: ='General Assumptions'!$I$85 -> 0.3 | N168: ='General Assumptions'!$I$85 -> 0.3 | P168: ='General Assumptions'!$I$85
E170: Interest Receivable | G170: A$'000 | J170: =(J166+(1-$I$164)*J167)*J162/(1-(1-$I$164)*(1-J168)*J162) -> 0.2701235145 | K170: =(K166+(1-$I$164)*K167)*K162/(1-(1-$I$164)*(1-K168)*K162) -> 0.721778574 | L170: 1.425604662 | M170: 2.634946569 | N170: 4.074467282 | P170: =(J166+(1-$I$164)*J167)*J162/(1-(1-$I$164)*(1-J168)*J162)
D172: Control Account
E174: Opening Interest Receivable | G174: A$'000 | J174: =I177 -> 0 | K174: =J177 -> 0.2701235145 | L174: 0.721778574 | M174: 1.425604662 | N174: 2.634946569 | O174: =Balance_Sheet -> BS | P174: =I177
E175: Interest Income | G175: A$'000 | J175: =J170 -> 0.2701235145 | K175: =K170 -> 0.721778574 | L175: 1.425604662 | M175: 2.634946569 | N175: 4.074467282 | O175: =Income_Statement -> IS | P175: =J170
E176: Interest Received | G176: A$'000 | J176: =-J174 -> 0 | K176: =-K174 -> -0.2701235145 | L176: -0.721778574 | M176: -1.425604662 | N176: -2.634946569 | O176: =Cash_Flow_Statement -> CFS | P176: =-J174
E177: Closing Interest Receivable | G177: A$'000 | J177: =SUM(J174:J176) -> 0.2701235145 | K177: =SUM(K174:K176) -> 0.721778574 | L177: 1.425604662 | M177: 2.634946569 | N177: 4.074467282 | O177: =Balance_Sheet -> BS | P177: =SUM(J174:J176)
C180: Taxation
D182: ='General Assumptions'!D87 -> Permanent Differences
E184: ='General Assumptions'!E89 -> Non-Assessable Revenue | G184: =Currency -> US$'000 | J184: ='General Assumptions'!J89 -> 25 | K184: ='General Assumptions'!K89 -> 25 | L184: ='General Assumptions'!L89 -> 25 | M184: ='General Assumptions'!M89 -> 25 | N184: ='General Assumptions'!N89 -> 25 | P184: =_xlfn.FORMULATEXT(J184) -> ='General Assumptions'!J89
E185: ='General Assumptions'!E90 -> Disallowable Expenses | G185: =Currency -> US$'000 | J185: ='General Assumptions'!J90 -> 40 | K185: ='General Assumptions'!K90 -> 16 | L185: ='General Assumptions'!L90 -> 25 | M185: ='General Assumptions'!M90 -> 30 | N185: ='General Assumptions'!N90 -> 50 | P185: =_xlfn.FORMULATEXT(J185) -> ='General Assumptions'!J90
D187: Accounting Taxable Profit
E189: ='Income Statement'!D24 -> NPBT | G189: =Currency -> US$'000 | J189: ='Income Statement'!J24 -> 182.7701235 | K189: ='Income Statement'!K24 -> 165.5217786 | L189: ='Income Statement'!L24 -> 163.4856047 | M189: ='Income Statement'!M24 -> 168.6887466 | N189: ='Income Statement'!N24 -> 201.7385473 | P189: ='Income Statement'!J24
E190: Deduct: Non-Assessable Revenue | G190: =Currency -> US$'000 | J190: =-J184 -> -25 | K190: =-K184 -> -25 | L190: -25 | M190: -25 | N190: -25 | P190: =-J184
E191: Add: Disallowable Expenses | G191: =Currency -> US$'000 | J191: =J185 -> 40 | K191: =K185 -> 16 | L191: 25 | M191: 30 | N191: 50 | P191: =J185
E192: =D187 -> Accounting Taxable Profit | G192: =Currency -> US$'000 | J192: =SUM(J189:J191) -> 197.7701235 | K192: =SUM(K189:K191) -> 156.5217786 | L192: 163.4856047 | M192: 173.6887466 | N192: 226.7385473 | P192: =SUM(J189:J191)
E194: ='General Assumptions'!E85 -> Tax Rate | G194: =Percentage -> % | J194: ='General Assumptions'!$I$85 -> 0.3 | K194: ='General Assumptions'!$I$85 -> 0.3 | L194: ='General Assumptions'!$I$85 -> 0.3 | M194: ='General Assumptions'!$I$85 -> 0.3 | N194: ='General Assumptions'!$I$85 -> 0.3 | P194: ='General Assumptions'!$I$85
E196: Tax Expense / (Credit) | G196: =Currency -> US$'000 | J196: =J194*J192 -> 59.33103705 | K196: =K194*K192 -> 46.95653357 | L196: 49.0456814 | M196: 52.10662397 | N196: 68.02156418 | P196: =J194*J192
D198: Tax Depreciation (Declining Balance)
E200: Capital Expenditure
E201: Existing Assets | G201: =Currency -> US$'000 | I201: =I96 -> 0
E202: Capital Expenditure | G202: =Currency -> US$'000 | J202: =J97 -> 150 | K202: =K97 -> 180 | L202: =L97 -> 120 | M202: =M97 -> 90 | N202: =N97 -> 100 | P202: =J97
E204: Declining Balance Multiplier | G204: =Multiplier -> x | I204: ='General Assumptions'!I94 -> 2 | P204: =_xlfn.FORMULATEXT(I204) -> ='General Assumptions'!I94
E206: Remaining Life of Tax Assets | G206: =No_of_Years -> # Year(s) | I206: ='General Assumptions'!I96 -> 5 | P206: =_xlfn.FORMULATEXT(I206) -> ='General Assumptions'!I96
E207: Annual Rate | G207: =Percentage -> % | I207: ='General Assumptions'!I97 -> 0.4 | P207: ='General Assumptions'!I97
E209: Tax Asset Life of New Capex | G209: =No_of_Years -> # Year(s) | I209: ='General Assumptions'!I99 -> 4 | P209: ='General Assumptions'!I99
E210: Annual Rate | G210: =Percentage -> % | I210: ='General Assumptions'!I100 -> 0.5 | P210: ='General Assumptions'!I100
E212: Depreciation - Existing Assets | G212: =Currency -> US$'000 | H212: =I201 -> 0 | J212: =($H212-SUM($I212:I212))*IF(J$9=$I206,1,$I207) -> 0 | K212: =($H212-SUM($I212:J212))*IF(K$9=$I206,1,$I207) -> 0 | L212: =($H212-SUM($I212:K212))*IF(L$9=$I206,1,$I207) -> 0 | M212: =($H212-SUM($I212:L212))*IF(M$9=$I206,1,$I207) -> 0 | N212: =($H212-SUM($I212:M212))*IF(N$9=$I206,1,$I207) -> 0 | P212: =($H212-SUM($I212:I212))*IF(J$9=$I206,1,$I207)
E213: =N(E212)+1 -> 1 | G213: US$'000 | H213: =OFFSET($I$202,0,$E213) -> 150 | J213: =IF(J$9>=$E213,($H213-SUM($I213:I213))*IF(J$9=$I$209+$E213-1,1,$I$210),0) -> 75 | K213: =IF(K$9>=$E213,($H213-SUM($I213:J213))*IF(K$9=$I$209+$E213-1,1,$I$210),0) -> 37.5 | L213: =IF(L$9>=$E213,($H213-SUM($I213:K213))*IF(L$9=$I$209+$E213-1,1,$I$210),0) -> 18.75 | M213: =IF(M$9>=$E213,($H213-SUM($I213:L213))*IF(M$9=$I$209+$E213-1,1,$I$210),0) -> 18.75 | N213: =IF(N$9>=$E213,($H213-SUM($I213:M213))*IF(N$9=$I$209+$E213-1,1,$I$210),0) -> 0 | P213: =IF(J$9>=$E213,($H213-SUM($I213:I213))*IF(J$9=$I$209+$E213-1,1,$I$210),0)
E214: =N(E213)+1 -> 2 | G214: US$'000 | H214: =OFFSET($I$202,0,$E214) -> 180 | J214: =IF(J$9>=$E214,($H214-SUM($I214:I214))*IF(J$9=$I$209+$E214-1,1,$I$210),0) -> 0 | K214: =IF(K$9>=$E214,($H214-SUM($I214:J214))*IF(K$9=$I$209+$E214-1,1,$I$210),0) -> 90 | L214: =IF(L$9>=$E214,($H214-SUM($I214:K214))*IF(L$9=$I$209+$E214-1,1,$I$210),0) -> 45 | M214: =IF(M$9>=$E214,($H214-SUM($I214:L214))*IF(M$9=$I$209+$E214-1,1,$I$210),0) -> 22.5 | N214: =IF(N$9>=$E214,($H214-SUM($I214:M214))*IF(N$9=$I$209+$E214-1,1,$I$210),0) -> 22.5 | P214: =IF(J$9>=$E214,($H214-SUM($I214:I214))*IF(J$9=$I$209+$E214-1,1,$I$210),0)
E215: 3 | G215: US$'000 | H215: =OFFSET($I$202,0,$E215) -> 120 | J215: =IF(J$9>=$E215,($H215-SUM($I215:I215))*IF(J$9=$I$209+$E215-1,1,$I$210),0) -> 0 | K215: =IF(K$9>=$E215,($H215-SUM($I215:J215))*IF(K$9=$I$209+$E215-1,1,$I$210),0) -> 0 | L215: =IF(L$9>=$E215,($H215-SUM($I215:K215))*IF(L$9=$I$209+$E215-1,1,$I$210),0) -> 60 | M215: =IF(M$9>=$E215,($H215-SUM($I215:L215))*IF(M$9=$I$209+$E215-1,1,$I$210),0) -> 30 | N215: =IF(N$9>=$E215,($H215-SUM($I215:M215))*IF(N$9=$I$209+$E215-1,1,$I$210),0) -> 15 | P215: =IF(J$9>=$E215,($H215-SUM($I215:I215))*IF(J$9=$I$209+$E215-1,1,$I$210),0)
E216: 4 | G216: US$'000 | H216: =OFFSET($I$202,0,$E216) -> 90 | J216: =IF(J$9>=$E216,($H216-SUM($I216:I216))*IF(J$9=$I$209+$E216-1,1,$I$210),0) -> 0 | K216: =IF(K$9>=$E216,($H216-SUM($I216:J216))*IF(K$9=$I$209+$E216-1,1,$I$210),0) -> 0 | L216: =IF(L$9>=$E216,($H216-SUM($I216:K216))*IF(L$9=$I$209+$E216-1,1,$I$210),0) -> 0 | M216: =IF(M$9>=$E216,($H216-SUM($I216:L216))*IF(M$9=$I$209+$E216-1,1,$I$210),0) -> 45 | N216: =IF(N$9>=$E216,($H216-SUM($I216:M216))*IF(N$9=$I$209+$E216-1,1,$I$210),0) -> 22.5 | P216: =IF(J$9>=$E216,($H216-SUM($I216:I216))*IF(J$9=$I$209+$E216-1,1,$I$210),0)
E217: 5 | G217: US$'000 | H217: =OFFSET($I$202,0,$E217) -> 100 | J217: =IF(J$9>=$E217,($H217-SUM($I217:I217))*IF(J$9=$I$209+$E217-1,1,$I$210),0) -> 0 | K217: =IF(K$9>=$E217,($H217-SUM($I217:J217))*IF(K$9=$I$209+$E217-1,1,$I$210),0) -> 0 | L217: =IF(L$9>=$E217,($H217-SUM($I217:K217))*IF(L$9=$I$209+$E217-1,1,$I$210),0) -> 0 | M217: =IF(M$9>=$E217,($H217-SUM($I217:L217))*IF(M$9=$I$209+$E217-1,1,$I$210),0) -> 0 | N217: =IF(N$9>=$E217,($H217-SUM($I217:M217))*IF(N$9=$I$209+$E217-1,1,$I$210),0) -> 50 | P217: =IF(J$9>=$E217,($H217-SUM($I217:I217))*IF(J$9=$I$209+$E217-1,1,$I$210),0)
E218: Tax Depreciation | G218: US$'000 | H218: =SUM(H212:H217) -> 640 | I218: =SUM(J218:N218) -> 552.5 | J218: =SUM(J212:J217) -> 75 | K218: =SUM(K212:K217) -> 127.5 | L218: 123.75 | M218: 116.25 | N218: 110 | P218: =SUM(J212:J217)
D220: Accounting Depreciation
E222: =D220 -> Accounting Depreciation | G222: =Currency -> US$'000 | I222: =SUM(J222:N222) -> 490 | J222: =J114 -> 37.5 | K222: =K114 -> 82.5 | L222: =L114 -> 112.5 | M222: =M114 -> 135 | N222: =N114 -> 122.5 | P222: =J114
D224: Depreciation Timing Difference
E226: =E222 -> Accounting Depreciation | G226: =Currency -> US$'000 | J226: =J222 -> 37.5 | K226: =K222 -> 82.5 | L226: =L222 -> 112.5 | M226: 135 | N226: 122.5 | P226: =J222
E227: Tax Depreciation | G227: =Currency -> US$'000 | J227: =-J218 -> -75 | K227: =-K218 -> -127.5 | L227: -123.75 | M227: -116.25 | N227: -110 | P227: =-J218
E228: Depreciation Timing Difference | G228: =Currency -> US$'000 | J228: =SUM(J226:J227) -> -37.5 | K228: =SUM(K226:K227) -> -45 | L228: -11.25 | M228: 18.75 | N228: 12.5 | P228: =SUM(J226:J227)
E230: Tax Rate | G230: % | J230: ='General Assumptions'!$I$85 -> 0.3 | K230: ='General Assumptions'!$I$85 -> 0.3 | L230: ='General Assumptions'!$I$85 -> 0.3 | M230: ='General Assumptions'!$I$85 -> 0.3 | N230: ='General Assumptions'!$I$85 -> 0.3 | P230: ='General Assumptions'!$I$85
E232: Movement in DTLs | G232: =Currency -> US$'000 | J232: =-J230*J228 -> 11.25 | K232: =-K230*K228 -> 13.5 | L232: 3.375 | M232: -5.625 | N232: -3.75 | P232: =-J230*J228
E234: Opening DTLs | G234: =Currency -> US$'000 | J234: =I236 -> 0 | K234: =J236 -> 11.25 | L234: 24.75 | M234: 28.125 | N234: 22.5 | P234: =I236
E235: Movement in DTLs | G235: =Currency -> US$'000 | J235: =J232 -> 11.25 | K235: =K232 -> 13.5 | L235: 3.375 | M235: -5.625 | N235: -3.75 | P235: =J232
E236: Closing DTLs | G236: =Currency -> US$'000 | I236: ='Opening Balance Sheet'!I36 -> 0 | J236: =SUM(J234:J235) -> 11.25 | K236: =SUM(K234:K235) -> 24.75 | L236: 28.125 | M236: 22.5 | N236: 18.75 | O236: =Balance_Sheet -> BS | P236: =SUM(J234:J235)
D238: Tax Payable and Paid | G238: =Currency -> US$'000
E240: =E192 -> Accounting Taxable Profit | G240: =Currency -> US$'000 | J240: =J192 -> 197.7701235 | K240: =K192 -> 156.5217786 | L240: =L192 -> 163.4856047 | M240: 173.6887466 | N240: 226.7385473 | P240: =J192
E241: =E228 -> Depreciation Timing Difference | G241: =Currency -> US$'000 | J241: =J228 -> -37.5 | K241: =K228 -> -45 | L241: -11.25 | M241: 18.75 | N241: 12.5 | P241: =J228
E242: Taxable Profit / (Loss) Before Losses | G242: =Currency -> US$'000 | J242: =SUM(J240:J241) -> 160.2701235 | K242: =SUM(K240:K241) -> 111.5217786 | L242: 152.2356047 | M242: 192.4387466 | N242: 239.2385473 | P242: =SUM(J240:J241)
E243: Tax Losses Used | G243: =Currency -> US$'000 | J243: =J263 -> 0 | K243: =K263 -> 0 | L243: 0 | M243: 0 | N243: 0 | P243: =J263
E244: Taxable Profit / (Loss) after Losses | G244: =Currency -> US$'000 | J244: =SUM(J242:J243) -> 160.2701235 | K244: =SUM(K242:K243) -> 111.5217786 | L244: 152.2356047 | M244: 192.4387466 | N244: 239.2385473 | P244: =SUM(J242:J243)
E245: =E230 -> Tax Rate | G245: =Percentage -> % | J245: =J230 -> 0.3 | K245: =K230 -> 0.3 | L245: 0.3 | M245: 0.3 | N245: 0.3 | P245: =J230
E246: Tax Payable for Period | G246: =Currency -> US$'000 | J246: =MAX(J244*J245,0) -> 48.08103705 | K246: =MAX(K244*K245,0) -> 33.45653357 | L246: 45.6706814 | M246: 57.73162397 | N246: 71.77156418 | P246: =MAX(J244*J245,0)
E248: ='General Assumptions'!E114 -> Payment Delay | G248: =No_of_Years -> # Year(s) | I248: ='General Assumptions'!I114 -> 1 | P248: =_xlfn.FORMULATEXT(I248) -> ='General Assumptions'!I114
E250: Opening Tax Payable | G250: =Currency -> US$'000 | J250: =I253 -> 0 | K250: =J253 -> 48.08103705 | L250: 33.45653357 | M250: 45.6706814 | N250: 57.73162397 | P250: =_xlfn.FORMULATEXT(J250) -> =I253
E251: Tax Payable for Period | G251: =Currency -> US$'000 | I251: =I253 -> 0 | J251: =J246 -> 48.08103705 | K251: =K246 -> 33.45653357 | L251: 45.6706814 | M251: 57.73162397 | N251: 71.77156418 | P251: =J246
E252: Tax Paid | G252: =Currency -> US$'000 | J252: =-IF(J$9-$I248<0,0,OFFSET(J251,0,-$I248)) -> 0 | K252: =-IF(K$9-$I248<0,0,OFFSET(K251,0,-$I248)) -> -48.08103705 | L252: -33.45653357 | M252: -45.6706814 | N252: -57.73162397 | P252: =-IF(J$9-$I248<0,0,OFFSET(J251,0,-$I248))
E253: Closing Tax Payable | G253: =Currency -> US$'000 | I253: ='Opening Balance Sheet'!I30 -> 0 | J253: =SUM(J250:J252) -> 48.08103705 | K253: =SUM(K250:K252) -> 33.45653357 | L253: 45.6706814 | M253: 57.73162397 | N253: 71.77156418 | P253: =SUM(J250:J252)
D255: Tax Losses Memorandum
E257: DTA | G257: =Currency -> US$'000 | I257: ='General Assumptions'!I105 -> 0 | P257: =_xlfn.FORMULATEXT(I257) -> ='General Assumptions'!I105
E258: =E230 -> Tax Rate | G258: =Percentage -> % | I258: ='General Assumptions'!I85 -> 0.3 | P258: =_xlfn.FORMULATEXT(I258) -> ='General Assumptions'!I85
E259: Opening Tax Losses | G259: =Currency -> US$'000 | I259: =IF(I258<=0,0,I257/I258) -> 0
E261: =E259 -> Opening Tax Losses | G261: =Currency -> US$'000 | J261: =I264 -> 0 | K261: =J264 -> 0 | L261: 0 | M261: 0 | N261: 0 | P261: =I264
E262: Tax Losses Created During the Period | G262: =Currency -> US$'000 | J262: =-MIN(J242,0) -> 0 | K262: =-MIN(K242,0) -> 0 | L262: 0 | M262: 0 | N262: 0 | P262: =-MIN(J242,0)
E263: =E243 -> Tax Losses Used | G263: =Currency -> US$'000 | J263: =IF(J242>0,-MAX(MIN(J242,J261),0),0) -> 0 | K263: =IF(K242>0,-MAX(MIN(K242,K261),0),0) -> 0 | L263: 0 | M263: 0 | N263: 0 | P263: =IF(J242>0,-MAX(MIN(J242,J261),0),0)
E264: Closing Tax Losses | G264: =Currency -> US$'000 | I264: =I259 -> 0 | J264: =SUM(J261:J263) -> 0 | K264: =SUM(K261:K263) -> 0 | L264: 0 | M264: 0 | N264: 0 | P264: =SUM(J261:J263)
E266: Movement in Tax Losses | G266: =Currency -> US$'000 | J266: =SUM(J262:J263) -> 0 | K266: =SUM(K262:K263) -> 0 | L266: =SUM(L262:L263) -> 0 | M266: 0 | N266: 0 | P266: =SUM(J262:J263)
E268: =E258 -> Tax Rate | G268: =Percentage -> % | J268: =J230 -> 0.3 | K268: =K230 -> 0.3 | L268: 0.3 | M268: 0.3 | N268: 0.3 | P268: =J230
E270: Movement in DTAs | G270: =Currency -> US$'000 | J270: =J268*J266 -> 0 | K270: =K268*K266 -> 0 | L270: 0 | M270: 0 | N270: 0 | P270: =J268*J266
E272: Opening DTAs | G272: =Currency -> US$'000 | J272: =I274 -> 0 | K272: =J274 -> 0 | L272: 0 | M272: 0 | N272: 0 | P272: =I274
E273: =E270 -> Movement in DTAs | G273: =Currency -> US$'000 | J273: =J270 -> 0 | K273: =K270 -> 0 | L273: 0 | M273: 0 | N273: 0 | P273: =J270
E274: Closing DTAs | G274: =Currency -> US$'000 | I274: =I257 -> 0 | J274: =SUM(J272:J273) -> 0 | K274: =SUM(K272:K273) -> 0 | L274: 0 | M274: 0 | N274: 0 | O274: =Balance_Sheet -> BS | P274: =SUM(J272:J273)
D276: =D152 -> Control Account
E278: =E250 -> Opening Tax Payable | G278: =Currency -> US$'000 | J278: =I283 -> 0 | K278: =J283 -> 48.08103705 | L278: =K283 -> 33.45653357 | M278: 45.6706814 | N278: 57.73162397 | O278: =Balance_Sheet -> BS | P278: =I283
E279: =E196 -> Tax Expense / (Credit) | G279: US$'000 | J279: =J196 -> 59.33103705 | K279: =K196 -> 46.95653357 | L279: =L196 -> 49.0456814 | M279: 52.10662397 | N279: 68.02156418 | O279: =Income_Statement -> IS | P279: =J196
E280: =E252 -> Tax Paid | G280: US$'000 | J280: =J252 -> 0 | K280: =K252 -> -48.08103705 | L280: -33.45653357 | M280: -45.6706814 | N280: -57.73162397 | O280: =Cash_Flow_Statement -> CFS | P280: =J252
E281: =E270 -> Movement in DTAs | G281: US$'000 | J281: =J270 -> 0 | K281: =K270 -> 0 | L281: 0 | M281: 0 | N281: 0 | P281: =J270
E282: =E232 -> Movement in DTLs | G282: US$'000 | J282: =-J232 -> -11.25 | K282: =-K232 -> -13.5 | L282: -3.375 | M282: 5.625 | N282: 3.75 | P282: =-J232
E283: =E253 -> Closing Tax Payable | G283: US$'000 | I283: =I253 -> 0 | J283: =SUM(J278:J282) -> 48.08103705 | K283: =SUM(K278:K282) -> 33.45653357 | L283: 45.6706814 | M283: 57.73162397 | N283: 71.77156418 | O283: =Balance_Sheet -> BS | P283: =SUM(J278:J282)

Sheet Opening Balance Sheet
A1: =IFERROR(RIGHT(CELL("filename",A1),LEN(CELL("filename",A1))-FIND("]",CELL("filename",A1))),"") -> Opening Balance Sheet
A2: =Model_Name -> Chapter 10.10 - Taxation.xlsm
A3: Navigator
A4: Error Checks: | G4: =Overall_Error_Check -> 0 | I4: =Model_Start_Date-1 -> 2020-06-30
B11: =MAX($B5:$B$5)+1 -> 1 | C11: =A1 -> Opening Balance Sheet
C13: Current Assets
D14: Cash | G14: =Currency -> US$'000 | K14: 250
D15: Accounts Receivable | G15: =Currency -> US$'000 | K15: 50
D16: Other Current Assets | G16: =Currency -> US$'000 | K16: 10
D17: Total Current Assets | G17: =Currency -> US$'000 | K17: =SUM(K14:K16) -> 310
C19: Non-Current Assets
D20: PP&E | G20: =Currency -> US$'000 | K20: 450
D21: Deferred Tax Assets | G21: =Currency -> US$'000 | K21: 75
D22: Total Non-Current Assets | G22: =Currency -> US$'000 | K22: =SUM(K20:K21) -> 525
C24: Total Assets | G24: =Currency -> US$'000 | K24: =K17+K22 -> 835
C26: Current Liabilities
D27: Accounts Payable | G27: =Currency -> US$'000 | K27: 30
D28: Interest Payable | G28: US$'000 | K28: 20
D29: Dividends Payable | G29: US$'000 | K29: 15
D30: Tax Payable | G30: US$'000 | K30: 40
D31: Other Current Liabilities | G31: US$'000 | K31: 10
D32: Total Current Liabilities | G32: US$'000 | K32: =SUM(K27:K31) -> 115
C34: Non-Current Liabilities
D35: Debt | G35: =Currency -> US$'000 | K35: 150
D36: Deferred Tax Liabilities | G36: =Currency -> US$'000 | K36: 25
D37: Total Non-Current Liabilities | G37: =Currency -> US$'000 | K37: =SUM(K35:K36) -> 175
C39: Total Liabilities | G39: =Currency -> US$'000 | K39: =K32+K37 -> 290
C41: Net Assets | G41: =Currency -> US$'000 | K41: =K24-K39 -> 545
C44: Equity
D45: Ordinary Equity | G45: =Currency -> US$'000 | K45: 300
E47: NPAT | G47: =Currency -> US$'000 | K47: 0
E48: Dividends Declared | G48: =Currency -> US$'000 | K48: 0
D49: Retained Profits | G49: =Currency -> US$'000 | K49: =K41-K45-K47-K48 -> 245
C50: Total Equity | G50: =Currency -> US$'000 | K50: =SUM(K45,K47:K49) -> 545
C53: Checks
D55: PF Error Check | G55: =Boolean -> [1,0] | I55: =IF(ISERROR(I41-I50),1,0) -> 0
D56: Balance Check | G56: =Boolean -> [1,0] | I56: =IF(I55<>0,0,(ROUND(I41-I50,Rounding_Accuracy)<>0)*1) -> 0
D57: Insolvency Check | G57: =Boolean -> [1,0] | I57: =IF(AND(I55=0,I56=0),(I41<0)*1,0) -> 0

Sheet Income Statement
A1: =IFERROR(RIGHT(CELL("filename",A1),LEN(CELL("filename",A1))-FIND("]",CELL("filename",A1))),"") -> Income Statement
A2: =Model_Name -> Chapter 10.10 - Taxation.xlsm
A3: Navigator
A4: Error Checks: | G4: =Overall_Error_Check -> 0
J5: =Timing!J5 -> 2021-06-30 | K5: =Timing!K5 -> 2022-06-30 | L5: =Timing!L5 -> 2023-06-30 | M5: =Timing!M5 -> 2024-06-30 | N5: =Timing!N5 -> 2025-06-30
C6: =Timing!C6 -> Start Date | J6: =Timing!J6 -> 2020-07-01 | K6: =Timing!K6 -> 2021-07-01 | L6: =Timing!L6 -> 2022-07-01 | M6: =Timing!M6 -> 2023-07-01 | N6: =Timing!N6 -> 2024-07-01
C7: =Timing!C7 -> End Date | J7: =Timing!J7 -> 2021-06-30 | K7: =Timing!K7 -> 2022-06-30 | L7: =Timing!L7 -> 2023-06-30 | M7: =Timing!M7 -> 2024-06-30 | N7: =Timing!N7 -> 2025-06-30
C8: =Timing!C8 -> Number of Days | J8: =Timing!J8 -> 365 | K8: =Timing!K8 -> 365 | L8: =Timing!L8 -> 365 | M8: =Timing!M8 -> 366 | N8: =Timing!N8 -> 365
C9: =Timing!C9 -> Counter | J9: =Timing!J9 -> 1 | K9: =Timing!K9 -> 2 | L9: =Timing!L9 -> 3 | M9: =Timing!M9 -> 4 | N9: =Timing!N9 -> 5
B11: =MAX($B$7:$B10)+1 -> 1 | C11: =A1 -> Income Statement
D13: Revenue | G13: =Currency -> US$'000 | J13: =Calculations!J32 -> 400 | K13: =Calculations!K32 -> 448 | L13: =Calculations!L32 -> 492.8 | M13: =Calculations!M32 -> 532.224 | N13: =Calculations!N32 -> 558.8352
D14: COGS | G14: =Currency -> US$'000 | J14: =-Calculations!J58 -> -120 | K14: =-Calculations!K58 -> -134.4 | L14: =-Calculations!L58 -> -147.84 | M14: =-Calculations!M58 -> -159.6672 | N14: =-Calculations!N58 -> -167.65056
D15: Gross Profit | G15: =Currency -> US$'000 | J15: =SUM(J13:J14) -> 280 | K15: =SUM(K13:K14) -> 313.6 | L15: 344.96 | M15: 372.5568 | N15: 391.18464
D17: Operating Expenditure | G17: =Currency -> US$'000 | J17: =-Calculations!J87 -> -60 | K17: =-Calculations!K87 -> -65 | L17: =-Calculations!L87 -> -67.6 | M17: =-Calculations!M87 -> -69.628 | N17: =-Calculations!N87 -> -71.02056
D18: EBITDA | G18: =Currency -> US$'000 | J18: =J15+J17 -> 220 | K18: =K15+K17 -> 248.6 | L18: 277.36 | M18: 302.9288 | N18: 320.16408
D20: Depreciation | G20: =Currency -> US$'000 | J20: =Calculations!J120 -> -37.5 | K20: =Calculations!K120 -> -82.5 | L20: =Calculations!L120 -> -112.5 | M20: =Calculations!M120 -> -135 | N20: =Calculations!N120 -> -122.5
D21: EBIT | G21: =Currency -> US$'000 | J21: =J18+J20 -> 182.5 | K21: =K18+K20 -> 166.1 | L21: =L18+L20 -> 164.86 | M21: =M18+M20 -> 167.9288 | N21: =N18+N20 -> 197.66408
D23: Interest Expense | G23: =Currency -> US$'000 | J23: =-Calculations!J155+Calculations!J175 -> 0.2701235145 | K23: =-Calculations!K155+Calculations!K175 -> -0.578221426 | L23: =-Calculations!L155+Calculations!L175 -> -1.374395338 | M23: =-Calculations!M155+Calculations!M175 -> 0.7599465687 | N23: =-Calculations!N155+Calculations!N175 -> 4.074467282
D24: NPBT | G24: =Currency -> US$'000 | J24: =J21+J23 -> 182.7701235 | K24: =K21+K23 -> 165.5217786 | L24: =L21+L23 -> 163.4856047 | M24: =M21+M23 -> 168.6887466 | N24: =N21+N23 -> 201.7385473
D26: Tax Expense | G26: =Currency -> US$'000 | J26: =-Calculations!J279 -> -59.33103705 | K26: =-Calculations!K279 -> -46.95653357 | L26: =-Calculations!L279 -> -49.0456814 | M26: =-Calculations!M279 -> -52.10662397 | N26: =-Calculations!N279 -> -68.02156418
D27: NPAT | G27: =Currency -> US$'000 | J27: =J24+J26 -> 123.4390865 | K27: =K24+K26 -> 118.565245 | L27: 114.4399233 | M27: 116.5821226 | N27: 133.7169831

Sheet Balance Sheet
A1: =IFERROR(RIGHT(CELL("filename",A1),LEN(CELL("filename",A1))-FIND("]",CELL("filename",A1))),"") -> Balance Sheet
A2: =Model_Name -> Chapter 10.10 - Taxation.xlsm
A3: Navigator
A4: Error Checks: | G4: =Overall_Error_Check -> 0
J5: =Timing!J5 -> 2021-06-30 | K5: =Timing!K5 -> 2022-06-30 | L5: =Timing!L5 -> 2023-06-30 | M5: =Timing!M5 -> 2024-06-30 | N5: =Timing!N5 -> 2025-06-30
C6: =Timing!C6 -> Start Date | J6: =Timing!J6 -> 2020-07-01 | K6: =Timing!K6 -> 2021-07-01 | L6: =Timing!L6 -> 2022-07-01 | M6: =Timing!M6 -> 2023-07-01 | N6: =Timing!N6 -> 2024-07-01
C7: =Timing!C7 -> End Date | J7: =Timing!J7 -> 2021-06-30 | K7: =Timing!K7 -> 2022-06-30 | L7: =Timing!L7 -> 2023-06-30 | M7: =Timing!M7 -> 2024-06-30 | N7: =Timing!N7 -> 2025-06-30
C8: =Timing!C8 -> Number of Days | J8: =Timing!J8 -> 365 | K8: =Timing!K8 -> 365 | L8: =Timing!L8 -> 365 | M8: =Timing!M8 -> 366 | N8: =Timing!N8 -> 365
C9: =Timing!C9 -> Counter | J9: =Timing!J9 -> 1 | K9: =Timing!K9 -> 2 | L9: =Timing!L9 -> 3 | M9: =Timing!M9 -> 4 | N9: =Timing!N9 -> 5
B11: =MAX($B$9:$B10)+1 -> 1 | C11: =A1 -> Balance Sheet
C13: ='Opening Balance Sheet'!C13 -> Current Assets
D14: ='Opening Balance Sheet'!D14 -> Cash | G14: =Currency -> US$'000 | J14: =IF(J$9=1,'Opening Balance Sheet'!$I$14,I14)+'Cash Flow Statement'!J37 -> 53.83561644 | K14: =IF(K$9=1,'Opening Balance Sheet'!$I$14,J14)+'Cash Flow Statement'!K37 -> 90.28497687 | L14: =IF(L$9=1,'Opening Balance Sheet'!$I$14,K14)+'Cash Flow Statement'!L37 -> 194.5598109 | M14: =IF(M$9=1,'Opening Balance Sheet'!$I$14,L14)+'Cash Flow Statement'!M37 -> 332.0106449 | N14: =IF(N$9=1,'Opening Balance Sheet'!$I$14,M14)+'Cash Flow Statement'!N37 -> 482.665631
D15: ='Opening Balance Sheet'!D15 -> Accounts Receivable | G15: =Currency -> US$'000 | J15: =Calculations!J34 -> 65.75342466 | K15: =Calculations!K34 -> 73.64383562 | L15: =Calculations!L34 -> 81.00821918 | M15: =Calculations!M34 -> 87.24983607 | N15: =Calculations!N34 -> 91.86332055
D16: ='Opening Balance Sheet'!D16 -> Other Current Assets | G16: =Currency -> US$'000
D17: ='Opening Balance Sheet'!D17 -> Total Current Assets | G17: =Currency -> US$'000 | J17: =SUM(J14:J16) -> 119.5890411 | K17: =SUM(K14:K16) -> 163.9288125 | L17: 275.5680301 | M17: 419.260481 | N17: 574.5289516
C19: ='Opening Balance Sheet'!C19 -> Non-Current Assets
D20: ='Opening Balance Sheet'!D20 -> PP&E | G20: =Currency -> US$'000 | J20: =Calculations!J121 -> 112.5 | K20: =Calculations!K121 -> 210 | L20: =Calculations!L121 -> 217.5 | M20: =Calculations!M121 -> 172.5 | N20: =Calculations!N121 -> 150
D21: ='Opening Balance Sheet'!D21 -> Deferred Tax Assets | G21: =Currency -> US$'000 | J21: =Calculations!J274 -> 0 | K21: =Calculations!K274 -> 0 | L21: =Calculations!L274 -> 0 | M21: =Calculations!M274 -> 0 | N21: =Calculations!N274 -> 0
D22: ='Opening Balance Sheet'!D22 -> Total Non-Current Assets | G22: =Currency -> US$'000 | J22: =SUM(J20:J21) -> 112.5 | K22: =SUM(K20:K21) -> 210 | L22: 217.5 | M22: 172.5 | N22: 150
C24: ='Opening Balance Sheet'!C24 -> Total Assets | G24: =Currency -> US$'000 | J24: =J17+J22 -> 232.0890411 | K24: =K17+K22 -> 373.9288125 | L24: 493.0680301 | M24: 591.760481 | N24: 724.5289516
C26: ='Opening Balance Sheet'!C26 -> Current Liabilities
D27: ='Opening Balance Sheet'!D27 -> Accounts Payable | G27: =Currency -> US$'000 | J27: =Calculations!J60+Calculations!J89 -> 29.5890411 | K27: =Calculations!K60+Calculations!K89 -> 33.13972603 | L27: =Calculations!L60+Calculations!L89 -> 36.45369863 | M27: =Calculations!M60+Calculations!M89 -> 39.26242623 | N27: =Calculations!N60+Calculations!N89 -> 41.33849425
D28: ='Opening Balance Sheet'!D28 -> Interest Payable | G28: US$'000 | J28: =Calculations!J157-Calculations!J177 -> -0.2701235145 | K28: =Calculations!K157-Calculations!K177 -> 0.578221426 | L28: =Calculations!L157-Calculations!L177 -> 1.374395338 | M28: =Calculations!M157-Calculations!M177 -> -0.7599465687 | N28: =Calculations!N157-Calculations!N177 -> -4.074467282
D29: ='Opening Balance Sheet'!D29 -> Dividends Payable | G29: US$'000
D30: ='Opening Balance Sheet'!D30 -> Tax Payable | G30: US$'000 | J30: =Calculations!J283 -> 48.08103705 | K30: =Calculations!K283 -> 33.45653357 | L30: =Calculations!L283 -> 45.6706814 | M30: =Calculations!M283 -> 57.73162397 | N30: =Calculations!N283 -> 71.77156418
D31: ='Opening Balance Sheet'!D31 -> Other Current Liabilities | G31: US$'000
D32: ='Opening Balance Sheet'!D32 -> Total Current Liabilities | G32: US$'000 | J32: =SUM(J27:J31) -> 77.39995464 | K32: =SUM(K27:K31) -> 67.17448103 | L32: 83.49877537 | M32: 96.23410363 | N32: 109.0355911
C34: ='Opening Balance Sheet'!C34 -> Non-Current Liabilities
D35: ='Opening Balance Sheet'!D35 -> Debt | G35: =Currency -> US$'000 | J35: =Calculations!J138 -> 20 | K35: =Calculations!K138 -> 40 | L35: =Calculations!L138 -> 25 | M35: =Calculations!M138 -> 0 | N35: =Calculations!N138 -> -10
D36: ='Opening Balance Sheet'!D36 -> Deferred Tax Liabilities | G36: =Currency -> US$'000 | J36: =Calculations!J236 -> 11.25 | K36: =Calculations!K236 -> 24.75 | L36: =Calculations!L236 -> 28.125 | M36: =Calculations!M236 -> 22.5 | N36: =Calculations!N236 -> 18.75
D37: ='Opening Balance Sheet'!D37 -> Total Non-Current Liabilities | G37: =Currency -> US$'000 | J37: =SUM(J35:J36) -> 31.25 | K37: =SUM(K35:K36) -> 64.75 | L37: 53.125 | M37: 22.5 | N37: 8.75
C39: ='Opening Balance Sheet'!C39 -> Total Liabilities | G39: =Currency -> US$'000 | J39: =J32+J37 -> 108.6499546 | K39: =K32+K37 -> 131.924481 | L39: 136.6237754 | M39: 118.7341036 | N39: 117.7855911
C41: ='Opening Balance Sheet'!C41 -> Net Assets | G41: =Currency -> US$'000 | J41: =J24-J39 -> 123.4390865 | K41: =K24-K39 -> 242.0043315 | L41: =L24-L39 -> 356.4442547 | M41: =M24-M39 -> 473.0263773 | N41: =N24-N39 -> 606.7433604
C44: ='Opening Balance Sheet'!C44 -> Equity
D45: ='Opening Balance Sheet'!D45 -> Ordinary Equity | G45: =Currency -> US$'000
E46: Opening Profits | G46: US$'000 | J46: =IF(J$9=1,'Opening Balance Sheet'!$I$49,I49) -> 0 | K46: =IF(K$9=1,'Opening Balance Sheet'!$I$49,J49) -> 123.4390865 | L46: =IF(L$9=1,'Opening Balance Sheet'!$I$49,K49) -> 242.0043315 | M46: =IF(M$9=1,'Opening Balance Sheet'!$I$49,L49) -> 356.4442547 | N46: =IF(N$9=1,'Opening Balance Sheet'!$I$49,M49) -> 473.0263773
E47: ='Opening Balance Sheet'!E47 -> NPAT | G47: US$'000 | J47: ='Income Statement'!J27 -> 123.4390865 | K47: ='Income Statement'!K27 -> 118.565245 | L47: ='Income Statement'!L27 -> 114.4399233 | M47: ='Income Statement'!M27 -> 116.5821226 | N47: ='Income Statement'!N27 -> 133.7169831
E48: ='Opening Balance Sheet'!E48 -> Dividends Declared | G48: US$'000
D49: ='Opening Balance Sheet'!D49 -> Retained Profits | G49: US$'000 | J49: =SUM(J46:J48) -> 123.4390865 | K49: =SUM(K46:K48) -> 242.0043315 | L49: =SUM(L46:L48) -> 356.4442547 | M49: 473.0263773 | N49: 606.7433604
C50: ='Opening Balance Sheet'!C50 -> Total Equity | G50: US$'000 | J50: =J45+J49 -> 123.4390865 | K50: =K45+K49 -> 242.0043315 | L50: 356.4442547 | M50: 473.0263773 | N50: 606.7433604
C53: ='Opening Balance Sheet'!C53 -> Checks
D55: ='Opening Balance Sheet'!D55 -> PF Error Check | G55: =Boolean -> [1,0] | I55: =MIN(SUM($J55:$N55),1) -> 0 | J55: =IF(ISERROR(J41-J50),1,0) -> 0 | K55: =IF(ISERROR(K41-K50),1,0) -> 0 | L55: =IF(ISERROR(L41-L50),1,0) -> 0 | M55: =IF(ISERROR(M41-M50),1,0) -> 0 | N55: =IF(ISERROR(N41-N50),1,0) -> 0
D56: ='Opening Balance Sheet'!D56 -> Balance Check | G56: =Boolean -> [1,0] | I56: =MIN(SUM($J56:$N56),1) -> 0 | J56: =IF(J55<>0,0,(ROUND(J41-J50,Rounding_Accuracy)<>0)*1) -> 0 | K56: =IF(K55<>0,0,(ROUND(K41-K50,Rounding_Accuracy)<>0)*1) -> 0 | L56: =IF(L55<>0,0,(ROUND(L41-L50,Rounding_Accuracy)<>0)*1) -> 0 | M56: =IF(M55<>0,0,(ROUND(M41-M50,Rounding_Accuracy)<>0)*1) -> 0 | N56: =IF(N55<>0,0,(ROUND(N41-N50,Rounding_Accuracy)<>0)*1) -> 0
D57: ='Opening Balance Sheet'!D57 -> Insolvency Check | G57: =Boolean -> [1,0] | I57: =MIN(SUM($J57:$N57),1) -> 0 | J57: =IF(AND(J55=0,J56=0),(J41<0)*1,0) -> 0 | K57: =IF(AND(K55=0,K56=0),(K41<0)*1,0) -> 0 | L57: 0 | M57: 0 | N57: 0

Sheet Cash Flow Statement
A1: =IFERROR(RIGHT(CELL("filename",A1),LEN(CELL("filename",A1))-FIND("]",CELL("filename",A1))),"") -> Cash Flow Statement
A2: =Model_Name -> Chapter 10.10 - Taxation.xlsm
A3: Navigator
A4: Error Checks: | G4: =Overall_Error_Check -> 0
J5: =Timing!J5 -> 2021-06-30 | K5: =Timing!K5 -> 2022-06-30 | L5: =Timing!L5 -> 2023-06-30 | M5: =Timing!M5 -> 2024-06-30 | N5: =Timing!N5 -> 2025-06-30
C6: =Timing!C6 -> Start Date | J6: =Timing!J6 -> 2020-07-01 | K6: =Timing!K6 -> 2021-07-01 | L6: =Timing!L6 -> 2022-07-01 | M6: =Timing!M6 -> 2023-07-01 | N6: =Timing!N6 -> 2024-07-01
C7: =Timing!C7 -> End Date | J7: =Timing!J7 -> 2021-06-30 | K7: =Timing!K7 -> 2022-06-30 | L7: =Timing!L7 -> 2023-06-30 | M7: =Timing!M7 -> 2024-06-30 | N7: =Timing!N7 -> 2025-06-30
C8: =Timing!C8 -> Number of Days | J8: =Timing!J8 -> 365 | K8: =Timing!K8 -> 365 | L8: =Timing!L8 -> 365 | M8: =Timing!M8 -> 366 | N8: =Timing!N8 -> 365
C9: =Timing!C9 -> Counter | J9: =Timing!J9 -> 1 | K9: =Timing!K9 -> 2 | L9: =Timing!L9 -> 3 | M9: =Timing!M9 -> 4 | N9: =Timing!N9 -> 5
B11: =MAX($B$9:$B10)+1 -> 1 | C11: =A1 -> Cash Flow Statement
C13: ="Direct "&C11 -> Direct Cash Flow Statement
D15: Operating Cash Flow
E16: Cash Receipts | G16: =Currency -> US$'000 | J16: =-Calculations!J33 -> 334.2465753 | K16: =-Calculations!K33 -> 440.109589 | L16: =-Calculations!L33 -> 485.4356164 | M16: =-Calculations!M33 -> 525.9823831 | N16: =-Calculations!N33 -> 554.2217155
F17: Direct Cash Payments | G17: US$'000 | J17: =Calculations!J59 -> -90.4109589 | K17: =Calculations!K59 -> -130.8493151 | L17: =Calculations!L59 -> -144.5260274 | M17: =Calculations!M59 -> -156.8584724 | N17: =Calculations!N59 -> -165.574492
F18: Indirect Cash Payments | G18: US$'000 | J18: =Calculations!J88 -> -60 | K18: =Calculations!K88 -> -65 | L18: =Calculations!L88 -> -67.6 | M18: =Calculations!M88 -> -69.628 | N18: =Calculations!N88 -> -71.02056
E19: Cash Payments | G19: US$'000 | J19: =SUM(J17:J18) -> -150.4109589 | K19: =SUM(K17:K18) -> -195.8493151 | L19: -212.1260274 | M19: -226.4864724 | N19: -236.595052
E20: Interest Paid | G20: US$'000 | J20: =Calculations!J156 -> 0 | K20: =Calculations!K156 -> 0 | L20: =Calculations!L156 -> -1.3 | M20: =Calculations!M156 -> -2.8 | N20: =Calculations!N156 -> -1.875
E21: Tax Paid | G21: US$'000 | J21: =Calculations!J280 -> 0 | K21: =Calculations!K280 -> -48.08103705 | L21: =Calculations!L280 -> -33.45653357 | M21: =Calculations!M280 -> -45.6706814 | N21: =Calculations!N280 -> -57.73162397
E22: ="Net "&D15 -> Net Operating Cash Flow | G22: US$'000 | J22: =SUM(J16,J19:J21) -> 183.8356164 | K22: =SUM(K16,K19:K21) -> 196.1792369 | L22: 238.5530555 | M22: 251.0252293 | N22: 258.0200396
D24: Investing Cash Flows
E25: Interest Received | G25: =Currency -> US$'000 | J25: =-Calculations!J176 -> 0 | K25: =-Calculations!K176 -> 0.2701235145 | L25: =-Calculations!L176 -> 0.721778574 | M25: =-Calculations!M176 -> 1.425604662 | N25: =-Calculations!N176 -> 2.634946569
E26: Purchases of Non-Current Assets | G26: =Currency -> US$'000 | J26: =-Calculations!J119 -> -150 | K26: =-Calculations!K119 -> -180 | L26: =-Calculations!L119 -> -120 | M26: =-Calculations!M119 -> -90 | N26: =-Calculations!N119 -> -100
E27: ="Net "&D24 -> Net Investing Cash Flows | G27: =Currency -> US$'000 | J27: =SUM(J25:J26) -> -150 | K27: =SUM(K25:K26) -> -179.7298765 | L27: -119.2782214 | M27: -88.57439534 | N27: -97.36505343
D29: Financing Cash Flows
E30: Debt Drawdowns | G30: =Currency -> US$'000 | J30: =Calculations!J136 -> 20 | K30: =Calculations!K136 -> 20 | L30: =Calculations!L136 -> 0 | M30: =Calculations!M136 -> 0 | N30: =Calculations!N136 -> 0
E31: Debt Repayments | G31: US$'000 | J31: =Calculations!J137 -> 0 | K31: =Calculations!K137 -> 0 | L31: =Calculations!L137 -> -15 | M31: =Calculations!M137 -> -25 | N31: =Calculations!N137 -> -10
E32: Ordinary Equity Issuances | G32: US$'000
E33: Ordinary Equity Buybacks | G33: US$'000
E34: Dividends Paid | G34: US$'000
E35: ="Net "&D29 -> Net Financing Cash Flows | G35: US$'000 | J35: =SUM(J30:J34) -> 20 | K35: =SUM(K30:K34) -> 20 | L35: -15 | M35: -25 | N35: -10
D37: Net Increase / (Decrease) in Cash Held | G37: =Currency -> US$'000 | J37: =J22+J27+J35 -> 53.83561644 | K37: =K22+K27+K35 -> 36.44936043 | L37: 104.274834 | M37: 137.450834 | N37: 150.6549861
C40: Indirect Extract | G40: =Currency -> US$'000
D42: Operating Cash Flow
E43: ='Income Statement'!D27 -> NPAT | G43: =Currency -> US$'000
E44: Add Back: | G44: =Currency -> US$'000
F45: ='Income Statement'!D20 -> Depreciation | G45: =Currency -> US$'000
F46: ='Income Statement'!D23 -> Interest Expense | G46: =Currency -> US$'000
F47: ='Income Statement'!D26 -> Tax Expense | G47: =Currency -> US$'000
E48: Movements in Working Capital:
F49: (Inc) / Dec in Current Assets | G49: =Currency -> US$'000
F50: Inc / (Dec) in Current Liabilities | G50: =Currency -> US$'000
E51: Deduct:
F52: =E20 -> Interest Paid | G52: =Currency -> US$'000
F53: =E21 -> Tax Paid | G53: =Currency -> US$'000
D54: ="Net "&D42 -> Net Operating Cash Flow | G54: =Currency -> US$'000
E57: ='Balance Sheet'!D55 -> PF Error Check | G57: =Boolean -> [1,0]
E58: Reconciliation Check: | G58: =Boolean -> [1,0]

Sheet Error Checks
A1: =IFERROR(RIGHT(CELL("filename",A1),LEN(CELL("filename",A1))-FIND("]",CELL("filename",A1))),"") -> Error Checks
A2: =Model_Name -> Chapter 10.10 - Taxation.xlsm
A3: Navigator
A4: Error Checks: | F4: =Overall_Error_Check -> 0
B6: =MAX($B$5:$B5)+1 -> 1 | C6: Error Checks
C8: Summary of Errors
D10: Assumptions
E12: Opening Balance Sheet - no errors | I12: ='Opening Balance Sheet'!I55 -> 0
E13: Opening Balance Sheet - balances | I13: ='Opening Balance Sheet'!I56 -> 0
E14: Opening Balance Sheet - solvent | I14: ='Opening Balance Sheet'!I57 -> 0
E15: Balance Sheet - no errors | I15: ='Balance Sheet'!I55 -> 0
E16: Balance Sheet - balances | I16: ='Balance Sheet'!I56 -> 0
E17: Balance Sheet - solvent | I17: ='Balance Sheet'!I57 -> 0
E21: =C8 -> Summary of Errors | I21: =MIN(1,SUM(I11:I19)) -> 0

Sheet Timing
A1: =IFERROR(RIGHT(CELL("filename",A1),LEN(CELL("filename",A1))-FIND("]",CELL("filename",A1))),"") -> Timing
A2: =Model_Name -> Chapter 10.10 - Taxation.xlsm
A3: Navigator
A4: Error Checks: | F4: =Overall_Error_Check -> 0
J5: =J$7 -> 2021-06-30 | K5: =K$7 -> 2022-06-30 | L5: =L$7 -> 2023-06-30 | M5: =M$7 -> 2024-06-30 | N5: =N$7 -> 2025-06-30
C6: Start Date | J6: =IF(J$9=1,Model_Start_Date,I$7+1) -> 2020-07-01 | K6: =IF(K$9=1,Model_Start_Date,J$7+1) -> 2021-07-01 | L6: =IF(L$9=1,Model_Start_Date,K$7+1) -> 2022-07-01 | M6: =IF(M$9=1,Model_Start_Date,L$7+1) -> 2023-07-01 | N6: =IF(N$9=1,Model_Start_Date,M$7+1) -> 2024-07-01
C7: End Date | J7: =EOMONTH(J$6,MOD(Periodicity+Reporting_Month_Factor-MONTH(J$6),Periodicity)) -> 2021-06-30 | K7: =EOMONTH(K$6,MOD(Periodicity+Reporting_Month_Factor-MONTH(K$6),Periodicity)) -> 2022-06-30 | L7: =EOMONTH(L$6,MOD(Periodicity+Reporting_Month_Factor-MONTH(L$6),Periodicity)) -> 2023-06-30 | M7: =EOMONTH(M$6,MOD(Periodicity+Reporting_Month_Factor-MONTH(M$6),Periodicity)) -> 2024-06-30 | N7: =EOMONTH(N$6,MOD(Periodicity+Reporting_Month_Factor-MONTH(N$6),Periodicity)) -> 2025-06-30
C8: Number of Days | J8: =J7-J6+1 -> 365 | K8: =K7-K6+1 -> 365 | L8: 365 | M8: 366 | N8: 365
C9: Counter | J9: =N(I$9)+1 -> 1 | K9: =N(J$9)+1 -> 2 | L9: 3 | M9: 4 | N9: 5
B11: =MAX($B$10:$B10)+1 -> 1 | C11: Timing Assumptions
C13: Data (do not change once modelling has commenced)
D15: Model Start Date | H15: 2020-07-01
D17: Number of Months in a Full Period | H17: 12
D19: Example Reporting Month | H19: 6 | I19: ="e.g. "&TEXT(DATE(YEAR(Model_Start_Date)+IF(Example_Reporting_Month<MONTH(Model_Start_Date),1,0),Example_Reporting_Month+1,1)-1,"dd-Mmm-yy") -> e.g. 30-Jun-21
D21: Reporting Month Factor | H21: =MOD(Example_Reporting_Month-1,Periodicity)+1 -> 6
D23: Months per Year | H23: 12

Sheet Lookup
A1: =IFERROR(RIGHT(CELL("filename",A1),LEN(CELL("filename",A1))-FIND("]",CELL("filename",A1))),"") -> Lookup
A2: =Model_Name -> Chapter 10.10 - Taxation.xlsm
A3: Navigator
A4: Error Checks: | G4: =Overall_Error_Check -> 0
B6: =MAX($B$5:$B5)+1 -> 1 | C6: =A1 -> Lookup
C8: Year Lookups
D10: =F11 -> LU_Future_Years
D11: =OFFSET(Timing!$J$7,,ROWS($A$9:$A9)) -> 2022-06-30 | F11: LU_Future_Years | H11: =_xlfn.FORMULATEXT(D11) -> =OFFSET(Timing!$J$7,,ROWS($A$9:$A9))
D12: =OFFSET(Timing!$J$7,,ROWS($A$9:$A10)) -> 2023-06-30 | H12: =_xlfn.FORMULATEXT(D12) -> =OFFSET(Timing!$J$7,,ROWS($A$9:$A10))
D13: =OFFSET(Timing!$J$7,,ROWS($A$9:$A11)) -> 2024-06-30 | H13: =OFFSET(Timing!$J$7,,ROWS($A$9:$A11))
D14: =OFFSET(Timing!$J$7,,ROWS($A$9:$A12)) -> 2025-06-30 | H14: =OFFSET(Timing!$J$7,,ROWS($A$9:$A12))
D15: Actuals Throughout

Sheet Change Log
A1: =IFERROR(RIGHT(CELL("filename",A1),LEN(CELL("filename",A1))-FIND("]",CELL("filename",A1))),"") -> Change Log
A2: =Model_Name -> Chapter 10.10 - Taxation.xlsm
A3: Navigator
A4: Error Checks: | F4: =Overall_Error_Check -> 0
B6: =MAX($B$5:$B5)+1 -> 1 | C6: =A1 -> Change Log
C8: Summary
F10: Date | G10: Model Version | H10: Details of change | I10: Worksheet Reference | J10: Row, column, cell reference | K10: Author
F11: 2013-05-21 | G11: Untitled attachment 00059.xlsm | H11: I changed it | I11: Change Log | J11: F11 | K11: LB
F12: 2013-05-21 | G12: Untitled attachment 00059.xlsm | H12: So did I. | I12: Timing | J12: A4 | K12: LB
F13: 2013-05-21 | G13: Untitled attachment 00059.xlsm | H13: And me. | I13: Navigator | J13: B9 | K13: Dave
